[Event "Early-Titled-Tuesday-Blitz-January-30-2024"]
[Site "Chess.com"]
[Date "2024.01.30"]
[Round "4"]
[White "Kotofeyca"]
[Black "Sadykov_Ramil"]
[Result "0-1"]
[WhiteElo "2392"]
[BlackElo "2612"]
[TimeControl "180+1"]
[EndTime "8:41:43 PST"]
[Termination "Sadykov_Ramil won on time"]

1. d4 {[%clk 0:03:00.9]} 1... d6 {[%clk 0:02:53.4]} 2. c4 {[%clk 0:03:00.9]}
2... e5 {[%clk 0:02:53.2]} 3. Nf3 {[%clk 0:03:00.4]} 3... e4 {[%clk 0:02:52.9]}
4. Nfd2 {[%clk 0:03:00.5]} 4... f5 {[%clk 0:02:52.7]} 5. f3 {[%clk 0:02:59.8]}
5... e3 {[%clk 0:02:49.6]} 6. Nb3 {[%clk 0:02:59.6]} 6... f4 {[%clk 0:02:49.7]}
7. g3 {[%clk 0:02:59.7]} 7... a5 {[%clk 0:02:44.6]} 8. d5 {[%clk 0:02:50.1]}
8... c5 {[%clk 0:02:30.4]} 9. dxc6 {[%clk 0:02:33.3]} 9... bxc6 {[%clk
0:02:07.8]} 10. Qd3 {[%clk 0:02:18.9]} 10... Na6 {[%clk 0:01:24.5]} 11. gxf4
{[%clk 0:02:17.2]} 11... Nb4 {[%clk 0:01:20.9]} 12. Qxe3+ {[%clk 0:02:17.1]}
12... Ne7 {[%clk 0:01:10.1]} 13. Na3 {[%clk 0:02:15.1]} 13... g6 {[%clk
0:00:57.6]} 14. Qc3 {[%clk 0:01:32.8]} 14... Rg8 {[%clk 0:00:45.5]} 15. Be3
{[%clk 0:01:23.4]} 15... Nf5 {[%clk 0:00:43.6]} 16. Bf2 {[%clk 0:01:16.7]} 16...
Bg7 {[%clk 0:00:41.9]} 17. Qd2 {[%clk 0:01:16.4]} 17... Qf6 {[%clk 0:00:37]} 18.
Rb1 {[%clk 0:00:36.4]} 18... Nxa2 {[%clk 0:00:25.8]} 19. e4 {[%clk 0:00:35.5]}
19... Nh4 {[%clk 0:00:22.3]} 20. Be2 {[%clk 0:00:32.3]} 20... Ng2+ {[%clk
0:00:20.9]} 21. Kd1 {[%clk 0:00:27.3]} 21... Nxf4 {[%clk 0:00:20.2]} 22. Nxa5
{[%clk 0:00:22]} 22... Rf8 {[%clk 0:00:14.5]} 23. Nxc6 {[%clk 0:00:13.2]} 23...
Bd7 {[%clk 0:00:11.5]} 24. Bd4 {[%clk 0:00:11.3]} 24... Qf7 {[%clk 0:00:07.6]}
25. Bxg7 {[%clk 0:00:11.2]} 25... Qxg7 {[%clk 0:00:07]} 26. Nd4 {[%clk
0:00:10.6]} 26... Kf7 {[%clk 0:00:03.6]} 27. Nab5 {[%clk 0:00:10.1]} 27... Kg8
{[%clk 0:00:03.7]} 28. Nxd6 {[%clk 0:00:09.2]} 28... Rad8 {[%clk 0:00:03]} 29.
c5 {[%clk 0:00:09.3]} 29... Qe5 {[%clk 0:00:02.8]} 30. b4 {[%clk 0:00:09.1]}
30... Bc8 {[%clk 0:00:02.7]} 31. Qxa2+ {[%clk 0:00:09.1]} 31... Kh8 {[%clk
0:00:02.5]} 32. Qb2 {[%clk 0:00:08.9]} 32... Kg8 {[%clk 0:00:02.1]} 33. Nc6
{[%clk 0:00:08.8]} 33... Qe6 {[%clk 0:00:01.8]} 34. Nxd8 {[%clk 0:00:08.4]}
34... Rxd8 {[%clk 0:00:02.7]} 35. Qb3 {[%clk 0:00:08.6]} 35... Qxb3+ {[%clk
0:00:02]} 36. Rxb3 {[%clk 0:00:09.5]} 36... Be6 {[%clk 0:00:01.8]} 37. Ra3
{[%clk 0:00:09.6]} 37... g5 {[%clk 0:00:02.2]} 38. Ra7 {[%clk 0:00:09.3]} 38...
Ng6 {[%clk 0:00:02.6]} 39. Rg1 {[%clk 0:00:09.2]} 39... h6 {[%clk 0:00:02.6]}
40. Bc4 {[%clk 0:00:08.1]} 40... Bxc4 {[%clk 0:00:02.3]} 41. Kc2 {[%clk
0:00:05.5]} 41... Be6 {[%clk 0:00:02.1]} 42. b5 {[%clk 0:00:05.5]} 42... Ne5
{[%clk 0:00:02.4]} 43. b6 {[%clk 0:00:05.6]} 43... Nd7 {[%clk 0:00:02.7]} 44. b7
{[%clk 0:00:04.4]} 44... Nxc5 {[%clk 0:00:02.2]} 45. Ra8 {[%clk 0:00:04.3]}
45... Nxb7 {[%clk 0:00:02.3]} 46. Rxd8+ {[%clk 0:00:02.3]} 46... Nxd8 {[%clk
0:00:03.2]} 47. Kd3 {[%clk 0:00:02.3]} 47... Nc6 {[%clk 0:00:03.7]} 48. Ke3
{[%clk 0:00:01.8]} 48... Kg7 {[%clk 0:00:03.7]} 49. Ra1 {[%clk 0:00:01.3]} 49...
Kf6 {[%clk 0:00:04.1]} 0-1

[Event "Early-Titled-Tuesday-Blitz-January-30-2024"]
[Site "Chess.com"]
[Date "2024.01.30"]
[Round "4"]
[White "themind1hunter"]
[Black "Amirreza_p"]
[Result "1-0"]
[WhiteElo "2542"]
[BlackElo "2741"]
[TimeControl "180+1"]
[EndTime "8:41:44 PST"]
[Termination "themind1hunter won by resignation"]

1. e4 {[%clk 0:02:53.4]} 1... c5 {[%clk 0:02:59.1]} 2. Nf3 {[%clk 0:02:49.1]}
2... g6 {[%clk 0:02:57.7]} 3. d4 {[%clk 0:02:49]} 3... cxd4 {[%clk 0:02:56.1]}
4. Nxd4 {[%clk 0:02:49.9]} 4... Bg7 {[%clk 0:02:54.7]} 5. c4 {[%clk 0:02:47.8]}
5... Nc6 {[%clk 0:02:53.1]} 6. Be3 {[%clk 0:02:47.8]} 6... Nf6 {[%clk
0:02:50.6]} 7. Nc3 {[%clk 0:02:47.2]} 7... d6 {[%clk 0:02:45.1]} 8. Be2 {[%clk
0:02:44.6]} 8... O-O {[%clk 0:02:44.5]} 9. O-O {[%clk 0:02:43.9]} 9... Nxd4
{[%clk 0:02:42.3]} 10. Bxd4 {[%clk 0:02:33.1]} 10... a5 {[%clk 0:02:42.1]} 11.
f3 {[%clk 0:02:12.9]} 11... a4 {[%clk 0:02:35.3]} 12. Nxa4 {[%clk 0:02:08.3]}
12... Be6 {[%clk 0:02:07.7]} 13. Nc3 {[%clk 0:01:59.6]} 13... Qa5 {[%clk
0:02:06.6]} 14. a3 {[%clk 0:01:54.2]} 14... Rfc8 {[%clk 0:02:05.3]} 15. b4
{[%clk 0:01:50.8]} 15... Qd8 {[%clk 0:02:05.9]} 16. Nd5 {[%clk 0:01:51.1]} 16...
Bxd5 {[%clk 0:02:03.7]} 17. exd5 {[%clk 0:01:47.6]} 17... Nd7 {[%clk 0:02:03.5]}
18. Bxg7 {[%clk 0:01:46.6]} 18... Kxg7 {[%clk 0:02:04.4]} 19. Qd4+ {[%clk
0:01:46]} 19... f6 {[%clk 0:02:00.6]} 20. Kh1 {[%clk 0:01:44.1]} 20... Qb6
{[%clk 0:01:41.1]} 21. Qe4 {[%clk 0:01:39.7]} 21... Re8 {[%clk 0:01:41.1]} 22.
f4 {[%clk 0:01:16.3]} 22... f5 {[%clk 0:01:41.1]} 23. Qd3 {[%clk 0:01:12.1]}
23... e5 {[%clk 0:01:18.5]} 24. dxe6 {[%clk 0:01:09.9]} 24... Rxe6 {[%clk
0:01:18.9]} 25. Bf3 {[%clk 0:01:04.9]} 25... Re3 {[%clk 0:01:02.5]} 26. Qd2
{[%clk 0:00:51.6]} 26... Re7 {[%clk 0:00:34.4]} 27. Rfe1 {[%clk 0:00:45.5]}
27... Rae8 {[%clk 0:00:33.3]} 28. Rxe7+ {[%clk 0:00:38.8]} 28... Rxe7 {[%clk
0:00:34.2]} 29. h3 {[%clk 0:00:37.6]} 29... Nf6 {[%clk 0:00:32.7]} 30. Rd1
{[%clk 0:00:35.1]} 30... Ne4 {[%clk 0:00:29.1]} 31. Qd4+ {[%clk 0:00:27.2]}
31... Qxd4 {[%clk 0:00:21.4]} 32. Rxd4 {[%clk 0:00:28.1]} 32... Re6 {[%clk
0:00:11.2]} 33. Kg1 {[%clk 0:00:24.9]} 33... Kf6 {[%clk 0:00:11.2]} 34. Bxe4
{[%clk 0:00:19.8]} 34... fxe4 {[%clk 0:00:11.2]} 35. Kf2 {[%clk 0:00:16.7]}
35... h5 {[%clk 0:00:07.5]} 36. Ke3 {[%clk 0:00:16.3]} 36... Kf5 {[%clk
0:00:07.2]} 37. g3 {[%clk 0:00:15.3]} 37... b6 {[%clk 0:00:05.4]} 38. Rd5+
{[%clk 0:00:14.6]} 38... Kf6 {[%clk 0:00:05.3]} 39. Rb5 {[%clk 0:00:14.1]} 39...
Re8 {[%clk 0:00:03.6]} 40. Rxb6 {[%clk 0:00:14.2]} 40... Ra8 {[%clk 0:00:04.3]}
41. Rxd6+ {[%clk 0:00:10.5]} 41... Kf5 {[%clk 0:00:04.8]} 42. Rd5+ {[%clk
0:00:10.3]} 42... Kf6 {[%clk 0:00:05.2]} 43. Ra5 {[%clk 0:00:08.8]} 43... Rd8
{[%clk 0:00:05.8]} 44. Kxe4 {[%clk 0:00:08.4]} 44... Rd1 {[%clk 0:00:04.3]} 45.
Ra6+ {[%clk 0:00:08.5]} 45... Kg7 {[%clk 0:00:04.4]} 46. c5 {[%clk 0:00:08.3]}
46... Re1+ {[%clk 0:00:05]} 47. Kf3 {[%clk 0:00:07]} 1-0

[Event "Early-Titled-Tuesday-Blitz-January-30-2024"]
[Site "Chess.com"]
[Date "2024.01.30"]
[Round "4"]
[White "PepeCuenca"]
[Black "marik_spb"]
[Result "0-1"]
[WhiteElo "2667"]
[BlackElo "2445"]
[TimeControl "180+1"]
[EndTime "8:41:46 PST"]
[Termination "marik_spb won on time"]

1. d4 {[%clk 0:03:00.9]} 1... Nf6 {[%clk 0:02:42.7]} 2. Bf4 {[%clk 0:02:59.7]}
2... d5 {[%clk 0:02:41.3]} 3. e3 {[%clk 0:02:59.6]} 3... c5 {[%clk 0:02:39.2]}
4. dxc5 {[%clk 0:02:59.5]} 4... e6 {[%clk 0:02:36.5]} 5. b4 {[%clk 0:02:59.3]}
5... a5 {[%clk 0:02:35.3]} 6. c3 {[%clk 0:02:55.6]} 6... Nc6 {[%clk 0:02:30.8]}
7. Bb5 {[%clk 0:02:55.1]} 7... Bd7 {[%clk 0:02:31]} 8. Qb3 {[%clk 0:02:55.1]}
8... Be7 {[%clk 0:02:13.5]} 9. Nd2 {[%clk 0:02:53.1]} 9... O-O {[%clk 0:02:13]}
10. Ngf3 {[%clk 0:02:47.6]} 10... Nxb4 {[%clk 0:02:03.5]} 11. Be2 {[%clk
0:01:27.4]} 11... Na6 {[%clk 0:01:33.1]} 12. Qxb7 {[%clk 0:01:18.8]} 12... Nxc5
{[%clk 0:01:31.7]} 13. Qb1 {[%clk 0:01:18.9]} 13... Nfe4 {[%clk 0:01:25.9]} 14.
Qc2 {[%clk 0:00:55.2]} 14... Ba4 {[%clk 0:01:15.7]} 15. Qc1 {[%clk 0:00:54.1]}
15... Bf6 {[%clk 0:01:14.6]} 16. Nd4 {[%clk 0:00:47.7]} 16... e5 {[%clk
0:01:04.5]} 17. O-O {[%clk 0:00:39.5]} 17... exf4 {[%clk 0:01:03.1]} 18. exf4
{[%clk 0:00:37.6]} 18... Nxd2 {[%clk 0:00:57.3]} 19. Qxd2 {[%clk 0:00:37.8]}
19... Ne4 {[%clk 0:00:57.4]} 20. Qd3 {[%clk 0:00:35.3]} 20... Rc8 {[%clk
0:00:54.5]} 21. Rfc1 {[%clk 0:00:32.2]} 21... Re8 {[%clk 0:00:34.4]} 22. Bg4
{[%clk 0:00:31.3]} 22... Rc4 {[%clk 0:00:32.5]} 23. Rab1 {[%clk 0:00:28.5]}
23... Qc7 {[%clk 0:00:30.5]} 24. Ne2 {[%clk 0:00:28]} 24... g6 {[%clk
0:00:27.2]} 25. Qxd5 {[%clk 0:00:24.6]} 25... Nxc3 {[%clk 0:00:23.1]} 26. Nxc3
{[%clk 0:00:24.1]} 26... Rxc3 {[%clk 0:00:22.9]} 27. Rf1 {[%clk 0:00:20.1]}
27... Bc6 {[%clk 0:00:20.2]} 28. Qd2 {[%clk 0:00:14.5]} 28... Be4 {[%clk
0:00:20]} 29. Rbe1 {[%clk 0:00:13.1]} 29... Rd8 {[%clk 0:00:20.6]} 30. Qxd8+
{[%clk 0:00:05.1]} 30... Qxd8 {[%clk 0:00:18.8]} 31. Rxe4 {[%clk 0:00:06]} 31...
Kg7 {[%clk 0:00:16.8]} 32. a4 {[%clk 0:00:06.2]} 32... h5 {[%clk 0:00:15.9]} 33.
Bf3 {[%clk 0:00:06.5]} 33... Rxf3 {[%clk 0:00:15]} 34. gxf3 {[%clk 0:00:06.5]}
34... Qd3 {[%clk 0:00:14.4]} 35. Kg2 {[%clk 0:00:06]} 35... h4 {[%clk
0:00:13.5]} 36. h3 {[%clk 0:00:06.4]} 36... Bc3 {[%clk 0:00:12]} 37. Rg1 {[%clk
0:00:04.5]} 37... Qc2 {[%clk 0:00:11]} 38. Rf1 {[%clk 0:00:03.7]} 38... Bb4
{[%clk 0:00:09.9]} 39. Rg1 {[%clk 0:00:03.3]} 39... Qxa4 {[%clk 0:00:10.1]} 40.
Rc1 {[%clk 0:00:02.7]} 40... Qb3 {[%clk 0:00:09.4]} 41. Rc7 {[%clk 0:00:03]}
41... Qd5 {[%clk 0:00:08.2]} 42. Rec4 {[%clk 0:00:01.9]} 42... Bd6 {[%clk
0:00:07.5]} 43. R7c6 {[%clk 0:00:02.2]} 43... Bxf4 {[%clk 0:00:07.1]} 44. Rc2
{[%clk 0:00:02.6]} 44... Bd6 {[%clk 0:00:06.7]} 45. Ra6 {[%clk 0:00:02.6]} 45...
Qg5+ {[%clk 0:00:07]} 46. Kf1 {[%clk 0:00:02.5]} 46... Bb4 {[%clk 0:00:07.2]}
47. Re2 {[%clk 0:00:01.9]} 47... Qb5 {[%clk 0:00:06.9]} 48. Ra8 {[%clk
0:00:01.6]} 48... a4 {[%clk 0:00:07.1]} 0-1

[Event "Early-Titled-Tuesday-Blitz-January-30-2024"]
[Site "Chess.com"]
[Date "2024.01.30"]
[Round "4"]
[White "ajkom197"]
[Black "simonachess"]
[Result "1-0"]
[WhiteElo "2548"]
[BlackElo "2359"]
[TimeControl "180+1"]
[EndTime "8:41:47 PST"]
[Termination "ajkom197 won on time"]

1. Nf3 {[%clk 0:03:00.9]} 1... Nf6 {[%clk 0:02:59]} 2. e3 {[%clk 0:02:54.1]}
2... b6 {[%clk 0:02:58]} 3. c4 {[%clk 0:02:53.2]} 3... Bb7 {[%clk 0:02:55.5]} 4.
d4 {[%clk 0:02:53.3]} 4... e6 {[%clk 0:02:56]} 5. Bd3 {[%clk 0:02:53.2]} 5... c5
{[%clk 0:02:55.5]} 6. O-O {[%clk 0:02:52.7]} 6... Be7 {[%clk 0:02:56]} 7. Nc3
{[%clk 0:02:51.1]} 7... O-O {[%clk 0:02:55.9]} 8. b3 {[%clk 0:02:46.5]} 8... d6
{[%clk 0:02:56.2]} 9. Bb2 {[%clk 0:02:46.4]} 9... cxd4 {[%clk 0:02:55.9]} 10.
exd4 {[%clk 0:02:45.2]} 10... Re8 {[%clk 0:02:54.9]} 11. Re1 {[%clk 0:02:45.2]}
11... Nbd7 {[%clk 0:02:54.2]} 12. h3 {[%clk 0:02:38.2]} 12... Bf8 {[%clk
0:02:53]} 13. Rc1 {[%clk 0:02:19.8]} 13... g6 {[%clk 0:02:16.4]} 14. Bf1 {[%clk
0:02:16.1]} 14... Bg7 {[%clk 0:02:16.1]} 15. g3 {[%clk 0:02:11]} 15... d5 {[%clk
0:02:08.7]} 16. Bg2 {[%clk 0:02:00.5]} 16... dxc4 {[%clk 0:02:07]} 17. bxc4
{[%clk 0:02:01.4]} 17... Rc8 {[%clk 0:01:52.4]} 18. Nb5 {[%clk 0:02:00.4]} 18...
Nf8 {[%clk 0:01:18.9]} 19. Ba3 {[%clk 0:01:44.2]} 19... Rb8 {[%clk 0:01:01.5]}
20. Nd6 {[%clk 0:01:23.4]} 20... Bxf3 {[%clk 0:00:58.1]} 21. Qxf3 {[%clk
0:01:16.1]} 21... Re7 {[%clk 0:00:58.2]} 22. Ne4 {[%clk 0:00:51.8]} 22... Rd7
{[%clk 0:00:54.3]} 23. Nxf6+ {[%clk 0:00:51.6]} 23... Qxf6 {[%clk 0:00:53.5]}
24. Qxf6 {[%clk 0:00:51.5]} 24... Bxf6 {[%clk 0:00:54.4]} 25. d5 {[%clk
0:00:51.7]} 25... exd5 {[%clk 0:00:49.7]} 26. cxd5 {[%clk 0:00:48.2]} 26... Rbd8
{[%clk 0:00:49.3]} 27. Rc6 {[%clk 0:00:45.1]} 27... Bd4 {[%clk 0:00:28.7]} 28.
h4 {[%clk 0:00:41.8]} 28... f5 {[%clk 0:00:25.2]} 29. Kf1 {[%clk 0:00:40.9]}
29... b5 {[%clk 0:00:15]} 30. Rec1 {[%clk 0:00:37.6]} 30... a5 {[%clk
0:00:14.7]} 31. R1c2 {[%clk 0:00:28.7]} 31... b4 {[%clk 0:00:14.8]} 32. Bc1
{[%clk 0:00:28.3]} 32... Be5 {[%clk 0:00:12.3]} 33. Bg5 {[%clk 0:00:27.5]} 33...
Re8 {[%clk 0:00:11.1]} 34. Rc8 {[%clk 0:00:26.9]} 34... Rxc8 {[%clk 0:00:10.8]}
35. Rxc8 {[%clk 0:00:27.6]} 35... Kf7 {[%clk 0:00:11.4]} 36. Ra8 {[%clk
0:00:27.2]} 36... Bc7 {[%clk 0:00:10]} 37. Bf3 {[%clk 0:00:24]} 37... Bb6 {[%clk
0:00:10.3]} 38. Ra6 {[%clk 0:00:23.1]} 38... Bc7 {[%clk 0:00:07.7]} 39. Rf6+
{[%clk 0:00:22.3]} 39... Kg7 {[%clk 0:00:07.6]} 40. Rc6 {[%clk 0:00:22.9]} 40...
h6 {[%clk 0:00:07.8]} 41. Be3 {[%clk 0:00:22.3]} 41... Bd6 {[%clk 0:00:05.1]}
42. Bd4+ {[%clk 0:00:22.1]} 42... Kf7 {[%clk 0:00:05]} 43. Be2 {[%clk
0:00:20.9]} 43... a4 {[%clk 0:00:05.2]} 44. Bc4 {[%clk 0:00:20.8]} 44... a3
{[%clk 0:00:05.3]} 45. Bb3 {[%clk 0:00:20.6]} 45... Nh7 {[%clk 0:00:05.2]} 46.
Rb6 {[%clk 0:00:17.5]} 46... Nf6 {[%clk 0:00:05.5]} 47. Ba4 {[%clk 0:00:15.3]}
47... Rd8 {[%clk 0:00:06]} 48. Rb7+ {[%clk 0:00:15.1]} 48... Be7 {[%clk
0:00:05.1]} 49. Bc5 {[%clk 0:00:15]} 49... Nxd5 {[%clk 0:00:03.2]} 50. Bb3
{[%clk 0:00:15.1]} 50... Kf6 {[%clk 0:00:02.9]} 51. Bd4+ {[%clk 0:00:13.7]}
51... Ke6 {[%clk 0:00:02.4]} 52. Rb5 {[%clk 0:00:13.6]} 52... Bf8 {[%clk
0:00:01.2]} 53. Ke2 {[%clk 0:00:12.1]} 53... g5 {[%clk 0:00:01.1]} 54. hxg5
{[%clk 0:00:12]} 54... hxg5 {[%clk 0:00:02]} 55. g4 {[%clk 0:00:11.3]} 55... f4
{[%clk 0:00:02.1]} 56. Kf3 {[%clk 0:00:11.6]} 1-0

[Event "Early-Titled-Tuesday-Blitz-January-30-2024"]
[Site "Chess.com"]
[Date "2024.01.30"]
[Round "4"]
[White "diamonds13"]
[Black "Ural_bogatyr"]
[Result "0-1"]
[WhiteElo "2348"]
[BlackElo "2542"]
[TimeControl "180+1"]
[EndTime "8:41:50 PST"]
[Termination "Ural_bogatyr won by resignation"]

1. d4 {[%clk 0:03:00.9]} 1... Nf6 {[%clk 0:02:59.6]} 2. c4 {[%clk 0:03:01.1]}
2... e6 {[%clk 0:02:59.5]} 3. Nc3 {[%clk 0:03:01.4]} 3... d5 {[%clk 0:02:59.3]}
4. cxd5 {[%clk 0:02:59.5]} 4... exd5 {[%clk 0:02:59.2]} 5. Bg5 {[%clk 0:03:00]}
5... Be7 {[%clk 0:02:59.1]} 6. e3 {[%clk 0:03:00.3]} 6... h6 {[%clk 0:02:58.6]}
7. Bh4 {[%clk 0:02:59.9]} 7... O-O {[%clk 0:02:57.9]} 8. Bd3 {[%clk 0:03:00.6]}
8... Bg4 {[%clk 0:02:57.5]} 9. f3 {[%clk 0:02:58.7]} 9... Be6 {[%clk 0:02:57.2]}
10. Qc2 {[%clk 0:02:58.2]} 10... c5 {[%clk 0:02:56.2]} 11. Nge2 {[%clk
0:02:52.2]} 11... Nc6 {[%clk 0:02:56.7]} 12. O-O {[%clk 0:02:48.4]} 12... c4
{[%clk 0:02:56.3]} 13. Bf5 {[%clk 0:02:48]} 13... a6 {[%clk 0:02:54]} 14. Rae1
{[%clk 0:02:46.3]} 14... b5 {[%clk 0:02:53.6]} 15. a3 {[%clk 0:02:45.6]} 15...
Rb8 {[%clk 0:02:51]} 16. Bg3 {[%clk 0:02:42.3]} 16... Rb7 {[%clk 0:02:46.6]} 17.
Bxe6 {[%clk 0:02:39.8]} 17... fxe6 {[%clk 0:02:46.5]} 18. Nf4 {[%clk 0:02:38.6]}
18... Qd7 {[%clk 0:02:43.9]} 19. Ng6 {[%clk 0:02:37.7]} 19... Re8 {[%clk
0:02:41.1]} 20. Ne5 {[%clk 0:02:12.7]} 20... Nxe5 {[%clk 0:02:34.7]} 21. Bxe5
{[%clk 0:02:08.5]} 21... a5 {[%clk 0:02:32.8]} 22. e4 {[%clk 0:01:59.7]} 22...
b4 {[%clk 0:02:32.8]} 23. axb4 {[%clk 0:01:56.5]} 23... axb4 {[%clk 0:02:33.7]}
24. Nd1 {[%clk 0:01:51.6]} 24... Rf8 {[%clk 0:02:28.5]} 25. Bxf6 {[%clk
0:01:45]} 25... Bxf6 {[%clk 0:02:27.7]} 26. e5 {[%clk 0:01:45.1]} 26... Bg5
{[%clk 0:02:26.6]} 27. g3 {[%clk 0:01:41.4]} 27... Bd8 {[%clk 0:02:17.7]} 28. f4
{[%clk 0:01:40.2]} 28... Bb6 {[%clk 0:02:17.7]} 29. Qd2 {[%clk 0:01:33.8]} 29...
Rc8 {[%clk 0:02:05.9]} 30. f5 {[%clk 0:01:30.5]} 30... exf5 {[%clk 0:02:00.6]}
31. e6 {[%clk 0:01:30.3]} 31... Qe8 {[%clk 0:01:55.9]} 32. Rxf5 {[%clk
0:01:29.5]} 32... Re7 {[%clk 0:01:56.5]} 33. Qe3 {[%clk 0:01:15]} 33... Rc6
{[%clk 0:01:52]} 34. Re5 {[%clk 0:01:09.2]} 34... Bc7 {[%clk 0:01:51.8]} 35. Nf2
{[%clk 0:01:02.3]} 35... Bxe5 {[%clk 0:01:51]} 36. Qxe5 {[%clk 0:01:00.5]} 36...
Rexe6 {[%clk 0:01:41.2]} 37. Qxd5 {[%clk 0:01:00.4]} 37... Kh8 {[%clk
0:01:40.1]} 38. Rf1 {[%clk 0:00:50.3]} 38... Red6 {[%clk 0:01:36.7]} 39. Qb5
{[%clk 0:00:45.9]} 39... c3 {[%clk 0:01:31.5]} 40. bxc3 {[%clk 0:00:40.2]} 40...
bxc3 {[%clk 0:01:32.4]} 41. Nd3 {[%clk 0:00:33.6]} 41... Qe3+ {[%clk 0:01:26.1]}
42. Kg2 {[%clk 0:00:32.5]} 42... Qe4+ {[%clk 0:01:25.3]} 43. Kh3 {[%clk
0:00:28.5]} 43... Rb6 {[%clk 0:01:08.5]} 44. Rf8+ {[%clk 0:00:23.1]} 44... Kh7
{[%clk 0:01:08.6]} 45. Qc4 {[%clk 0:00:18.8]} 45... Qe6+ {[%clk 0:01:08.6]} 46.
Qxe6 {[%clk 0:00:18.5]} 46... Rxe6 {[%clk 0:01:09.5]} 47. d5 {[%clk 0:00:16.5]}
47... Red6 {[%clk 0:01:08.6]} 48. Rc8 {[%clk 0:00:15.7]} 48... Rxd5 {[%clk
0:01:03.5]} 49. Rxc3 {[%clk 0:00:13.3]} 49... Rbd6 {[%clk 0:01:04]} 50. Nf4
{[%clk 0:00:13.1]} 50... Rd2 {[%clk 0:01:02.9]} 51. Rc7 {[%clk 0:00:11.9]} 51...
Rd7 {[%clk 0:00:55.3]} 52. Rc6 {[%clk 0:00:11.5]} 52... Ra2 {[%clk 0:00:52.3]}
53. Rb6 {[%clk 0:00:11.1]} 53... Rdd2 {[%clk 0:00:50]} 54. Rb7 {[%clk
0:00:09.2]} 54... Rxh2+ {[%clk 0:00:50]} 55. Kg4 {[%clk 0:00:09.7]} 55... Ra6
{[%clk 0:00:45]} 56. Kf5 {[%clk 0:00:09.3]} 56... Rc2 {[%clk 0:00:37.4]} 57. Kg4
{[%clk 0:00:08.9]} 57... Rc5 {[%clk 0:00:36.7]} 58. Kf3 {[%clk 0:00:08.8]} 58...
Ra3+ {[%clk 0:00:35.5]} 59. Kg4 {[%clk 0:00:08.9]} 59... Rg5+ {[%clk 0:00:36]}
60. Kh3 {[%clk 0:00:08.9]} 60... Raxg3+ {[%clk 0:00:35.2]} 61. Kh2 {[%clk
0:00:09]} 61... R3g4 {[%clk 0:00:35.8]} 62. Nh3 {[%clk 0:00:08.5]} 62... Rh4
{[%clk 0:00:36]} 63. Rb3 {[%clk 0:00:07.3]} 63... Rgh5 {[%clk 0:00:36.1]} 64.
Rc3 {[%clk 0:00:08]} 0-1

[Event "Early-Titled-Tuesday-Blitz-January-30-2024"]
[Site "Chess.com"]
[Date "2024.01.30"]
[Round "4"]
[White "pedro_gines"]
[Black "AlmasRakhmatullaev"]
[Result "0-1"]
[WhiteElo "2783"]
[BlackElo "2962"]
[TimeControl "180+1"]
[EndTime "8:41:51 PST"]
[Termination "AlmasRakhmatullaev won by resignation"]

1. d4 {[%clk 0:03:00.9]} 1... d5 {[%clk 0:02:57.8]} 2. c4 {[%clk 0:03:01.2]}
2... e6 {[%clk 0:02:57.8]} 3. Nc3 {[%clk 0:03:01]} 3... a6 {[%clk 0:02:58.1]} 4.
cxd5 {[%clk 0:03:00.3]} 4... exd5 {[%clk 0:02:59]} 5. Nf3 {[%clk 0:03:01.1]}
5... c6 {[%clk 0:02:58.1]} 6. Bf4 {[%clk 0:03:01.2]} 6... Nf6 {[%clk 0:02:56.1]}
7. e3 {[%clk 0:03:00.6]} 7... Bd6 {[%clk 0:02:54.4]} 8. Be5 {[%clk 0:03:00.3]}
8... O-O {[%clk 0:02:50.8]} 9. Qc2 {[%clk 0:02:59.9]} 9... Re8 {[%clk
0:02:44.5]} 10. Bd3 {[%clk 0:02:59.5]} 10... h6 {[%clk 0:02:44.3]} 11. h3 {[%clk
0:02:58.3]} 11... Qe7 {[%clk 0:02:41.1]} 12. O-O {[%clk 0:02:57.5]} 12... Nbd7
{[%clk 0:02:40.7]} 13. Bxd6 {[%clk 0:02:57.8]} 13... Qxd6 {[%clk 0:02:41.1]} 14.
Rad1 {[%clk 0:02:58.7]} 14... b6 {[%clk 0:02:33.9]} 15. Rfe1 {[%clk 0:02:58.4]}
15... Bb7 {[%clk 0:02:33.9]} 16. e4 {[%clk 0:02:46]} 16... dxe4 {[%clk
0:02:33.8]} 17. Nxe4 {[%clk 0:02:45.9]} 17... Nxe4 {[%clk 0:02:33.3]} 18. Bxe4
{[%clk 0:02:45.7]} 18... Nf6 {[%clk 0:02:32.2]} 19. Ne5 {[%clk 0:02:18.1]} 19...
Nxe4 {[%clk 0:02:28.4]} 20. Qxe4 {[%clk 0:02:18]} 20... Rad8 {[%clk 0:02:13.7]}
21. Qf3 {[%clk 0:02:04.8]} 21... Re7 {[%clk 0:02:07]} 22. Qb3 {[%clk 0:01:51.4]}
22... Qc7 {[%clk 0:01:51.2]} 23. Nc4 {[%clk 0:01:02.1]} 23... Rxe1+ {[%clk
0:01:46.7]} 24. Rxe1 {[%clk 0:01:03]} 24... b5 {[%clk 0:01:44.7]} 25. Ne5 {[%clk
0:00:58.3]} 25... Rxd4 {[%clk 0:01:27.8]} 26. Nxf7 {[%clk 0:00:54.5]} 26... Rd5
{[%clk 0:01:28]} 27. Ne5 {[%clk 0:00:54.6]} 27... c5 {[%clk 0:01:27.5]} 28. Qg3
{[%clk 0:00:38.8]} 28... Qd6 {[%clk 0:01:09.8]} 29. Qf4 {[%clk 0:00:19.5]} 29...
Qe6 {[%clk 0:00:39.4]} 30. Nf3 {[%clk 0:00:18.3]} 30... Qd7 {[%clk 0:00:30.1]}
31. Qb8+ {[%clk 0:00:16.8]} 31... Kh7 {[%clk 0:00:28.2]} 32. Ne5 {[%clk
0:00:17.4]} 32... Qe7 {[%clk 0:00:22.2]} 33. Nd3 {[%clk 0:00:09]} 33... Qg5
{[%clk 0:00:15.7]} 34. Qxb7 {[%clk 0:00:07.4]} 34... Rxd3 {[%clk 0:00:16.3]} 35.
Qe4+ {[%clk 0:00:07.9]} 35... Qg6 {[%clk 0:00:16.5]} 36. Qxg6+ {[%clk
0:00:07.3]} 36... Kxg6 {[%clk 0:00:17.4]} 37. Re6+ {[%clk 0:00:07.7]} 37... Kf5
{[%clk 0:00:17.7]} 38. Rxa6 {[%clk 0:00:08.6]} 38... Rd1+ {[%clk 0:00:17.6]} 39.
Kh2 {[%clk 0:00:08.8]} 39... Rd2 {[%clk 0:00:18.5]} 40. Rc6 {[%clk 0:00:08.1]}
40... Rc2 {[%clk 0:00:10.7]} 41. b4 {[%clk 0:00:08.6]} 41... c4 {[%clk
0:00:08.8]} 42. Rc5+ {[%clk 0:00:09.2]} 42... Ke4 {[%clk 0:00:09.5]} 43. Rxb5
{[%clk 0:00:08]} 43... Rxa2 {[%clk 0:00:10]} 44. Rb7 {[%clk 0:00:06.4]} 44... g5
{[%clk 0:00:09.7]} 45. Kg3 {[%clk 0:00:04.5]} 45... c3 {[%clk 0:00:09.9]} 46.
Rc7 {[%clk 0:00:04.4]} 46... c2 {[%clk 0:00:09.9]} 47. b5 {[%clk 0:00:02.8]}
47... Kd4 {[%clk 0:00:09.9]} 48. Kg4 {[%clk 0:00:03]} 48... Ra4 {[%clk
0:00:07.8]} 49. b6 {[%clk 0:00:01.6]} 49... Kd3+ {[%clk 0:00:04.9]} 50. Kh5
{[%clk 0:00:01.7]} 50... Rb4 {[%clk 0:00:05.4]} 51. b7 {[%clk 0:00:01.8]} 51...
Rxb7 {[%clk 0:00:05.2]} 52. Rxb7 {[%clk 0:00:01.3]} 52... c1=Q {[%clk
0:00:05.8]} 53. Kxh6 {[%clk 0:00:01.8]} 53... Qc6+ {[%clk 0:00:04.5]} 54. Kxg5
{[%clk 0:00:01.8]} 54... Qxb7 {[%clk 0:00:05.4]} 0-1